[Event "SS Manhem Chess Week GM and IM tournaments 2018"]
[Site "Molnlycke kulturhus, Biblioteksgatan 2, Molnlycke, Sweden"]
[Date "2018.08.14"]
[Round "5.8"]
[White "Pantzar, Milton"]
[Black "Mikalsen, Erlend"]
[Result "1/2-1/2"]
[TimeControl "90 minutes for 40 moves + 30 minutes for the rest of the game + 30 seconds per move from move one."]
[WhiteTitle "FM"]
[BlackTitle "FM"]
[WhiteFideId "1721003"]
[BlackFideId "1507338"]
[WhiteElo "2306"]
[BlackElo "2289"]

1. Nf3 {[%clk 01:30:54]} {[%emt 00:00:05]} d5 {[%clk 01:30:41]} {[%emt
00:00:19]} 2. d4 {[%clk 01:30:55]} {[%emt 00:00:29]} Nf6 {[%clk 01:31:06]}
{[%emt 00:00:05]} 3. c4 {[%clk 01:31:11]} {[%emt 00:00:14]} e6 {[%clk
01:31:26]} {[%emt 00:00:10]} 4. g3 {[%clk 01:31:25]} {[%emt 00:00:17]} dxc4
{[%clk 01:31:51]} {[%emt 00:00:04]} 5. Bg2 {[%clk 01:31:45]} {[%emt 00:00:09]}
c5 {[%clk 01:32:18]} {[%emt 00:00:04]} 6. O-O {[%clk 01:32:04]} {[%emt
00:00:10]} Nc6 {[%clk 01:32:47]} {[%emt 00:00:02]} 7. dxc5 {[%clk 01:31:55]}
{[%emt 00:00:39]} Qxd1 {[%clk 01:33:10]} {[%emt 00:00:06]} 8. Rxd1 {[%clk
01:32:19]} {[%emt 00:00:07]} Bxc5 {[%clk 01:33:37]} {[%emt 00:00:03]} 9. Nfd2
{[%clk 01:32:13]} {[%emt 00:00:36]} Na5 {[%clk 01:33:49]} {[%emt 00:00:18]} 10.
Na3 {[%clk 01:32:03]} {[%emt 00:00:41]} Bxa3 {[%clk 01:32:49]} {[%emt
00:01:30]} 11. bxa3 {[%clk 01:32:27]} {[%emt 00:00:06]} Bd7 {[%clk 01:16:12]}
{[%emt 00:17:06]} 12. Bb2 {[%clk 01:31:51]} {[%emt 00:01:05]} Rc8 {[%clk
01:14:27]} {[%emt 00:02:15]} 13. Bc3 {[%clk 01:28:54]} {[%emt 00:03:28]} b6
{[%clk 01:14:34]} {[%emt 00:00:24]} 14. Rdc1 {[%clk 01:28:48]} {[%emt
00:00:36]} Bb5 {[%clk 01:10:56]} {[%emt 00:04:06]} 15. Rab1 {[%clk 01:28:01]}
{[%emt 00:01:18]} Ba6 {[%clk 01:11:23]} {[%emt 00:00:03]} 16. Bxa5 {[%clk
01:27:25]} {[%emt 00:01:07]} bxa5 {[%clk 01:11:49]} {[%emt 00:00:03]} 17. Bb7
{[%clk 01:27:43]} {[%emt 00:00:12]} Bxb7 {[%clk 01:12:16]} {[%emt 00:00:04]} 18.
Rxb7 {[%clk 01:28:07]} {[%emt 00:00:05]} c3 {[%clk 01:11:08]} {[%emt 00:01:37]}
19. Rxa7 {[%clk 01:28:31]} {[%emt 00:00:06]} O-O {[%clk 01:11:10]} {[%emt
00:00:28]} 20. Nb3 {[%clk 01:28:22]} {[%emt 00:00:39]} Nd5 {[%clk 01:04:14]}
{[%emt 00:07:26]} 21. Rxa5 {[%clk 01:14:56]} {[%emt 00:13:57]} f5 {[%clk
01:00:49]} {[%emt 00:03:54]} 22. Nd4 {[%clk 00:48:20]} {[%emt 00:27:07]} Ra8
{[%clk 00:56:09]} {[%emt 00:05:10]} 23. Rc5 {[%clk 00:39:49]} {[%emt 00:09:01]}
Rfc8 {[%clk 00:49:52]} {[%emt 00:06:47]} 24. Rxc8+ {[%clk 00:28:56]} {[%emt
00:11:24]} Rxc8 {[%clk 00:50:17]} {[%emt 00:00:04]} 25. e3 {[%clk 00:24:53]}
{[%emt 00:04:33]} Kf7 {[%clk 00:48:59]} {[%emt 00:01:48]} 26. Kf1 {[%clk
00:21:55]} {[%emt 00:03:28]} g5 {[%clk 00:48:26]} {[%emt 00:01:00]} 27. h3
{[%clk 00:17:01]} {[%emt 00:05:26]} h5 {[%clk 00:45:58]} {[%emt 00:02:58]} 28.
Ke2 {[%clk 00:07:32]} {[%emt 00:09:59]} Rb8 {[%clk 00:44:59]} {[%emt 00:01:29]}
29. Rc2 {[%clk 00:06:52]} {[%emt 00:01:11]} Kf6 {[%clk 00:40:34]} {[%emt
00:04:55]} 30. f4 {[%clk 00:05:16]} {[%emt 00:02:06]} gxf4 {[%clk 00:37:15]}
{[%emt 00:03:48]} 31. exf4 {[%clk 00:04:40]} {[%emt 00:01:07]} h4 {[%clk
00:37:04]} {[%emt 00:00:42]} 32. Kf3 {[%clk 00:04:08]} {[%emt 00:01:01]} hxg3
{[%clk 00:36:38]} {[%emt 00:00:56]} 33. Kxg3 {[%clk 00:03:48]} {[%emt
00:00:50]} Ra8 {[%clk 00:37:04]} {[%emt 00:00:04]} 34. Ne2 {[%clk 00:02:14]}
{[%emt 00:02:04]} Rxa3 {[%clk 00:36:57]} {[%emt 00:00:37]} 35. Kf2 {[%clk
00:01:17]} {[%emt 00:01:27]} Kg6 {[%clk 00:36:03]} {[%emt 00:01:24]} 36. Kf3
{[%clk 00:01:33]} {[%emt 00:00:14]} Ra4 {[%clk 00:36:21]} {[%emt 00:00:12]} 37.
Kf2 {[%clk 00:00:57]} {[%emt 00:01:06]} Kh5 {[%clk 00:35:02]} {[%emt 00:01:49]}
38. Kg3 {[%clk 00:00:44]} {[%emt 00:00:43]} Re4 {[%clk 00:34:54]} {[%emt
00:00:37]} 39. Kf3 {[%clk 00:00:37]} {[%emt 00:00:38]} Kh4 {[%clk 00:35:00]}
{[%emt 00:00:24]} 40. Rc1 {[%clk 00:00:43]} {[%emt 00:00:24]} Re3+ {[%clk
00:34:30]} {[%emt 00:01:00]} 41. Kf2 {[%clk 00:01:06]} {[%emt 00:00:07]} Rxh3
{[%clk 00:34:12]} {[%emt 00:00:48]} 42. a4 {[%clk 00:28:28]} {[%emt 00:03:08]}
Nf6 {[%clk 01:00:14]} {[%emt 00:04:26]} 43. a5 {[%clk 00:22:50]} {[%emt
00:06:09]} Ne4+ {[%clk 00:58:02]} {[%emt 00:02:42]} 44. Kg2 {[%clk 00:16:59]}
{[%emt 00:06:22]} Kg4 {[%clk 00:46:16]} {[%emt 00:12:16]} 45. a6 {[%clk
00:15:40]} {[%emt 00:01:50]} Rh7 {[%clk 00:46:32]} {[%emt 00:00:13]} 46. Nxc3
{[%clk 00:14:42]} {[%emt 00:01:29]} Nxc3 {[%clk 00:45:29]} {[%emt 00:01:32]} 47.
Rxc3 {[%clk 00:15:09]} {[%emt 00:00:04]} Kxf4 {[%clk 00:45:54]} {[%emt
00:00:05]} 48. Ra3 {[%clk 00:15:23]} {[%emt 00:00:16]} Ra7 {[%clk 00:46:15]}
{[%emt 00:00:09]} 49. Kf2 {[%clk 00:12:04]} {[%emt 00:03:49]} Ke4 {[%clk
00:45:37]} {[%emt 00:01:08]} 50. Ra5 {[%clk 00:10:58]} {[%emt 00:01:37]} Kd4
{[%clk 00:45:18]} {[%emt 00:00:49]} 51. Kf3 {[%clk 00:10:42]} {[%emt 00:00:46]}
Kc4 {[%clk 00:45:41]} {[%emt 00:00:07]} 52. Kf4 {[%clk 00:09:20]} {[%emt
00:01:52]} Kb4 {[%clk 00:46:06]} {[%emt 00:00:05]} 53. Ra1 {[%clk 00:09:42]}
{[%emt 00:00:08]} Kb5 {[%clk 00:46:33]} {[%emt 00:00:03]} 54. Rb1+ {[%clk
00:09:21]} {[%emt 00:00:50]} Kxa6 {[%clk 00:45:47]} {[%emt 00:01:16]} 55. Ke5
{[%clk 00:09:47]} {[%emt 00:00:04]} Re7 {[%clk 00:42:13]} {[%emt 00:04:04]} 56.
Kf6 {[%clk 00:09:44]} {[%emt 00:00:33]} Rb7 {[%clk 00:42:00]} {[%emt 00:00:43]}
57. Ra1+ {[%clk 00:10:03]} {[%emt 00:00:12]} Kb5 {[%clk 00:42:26]} {[%emt
00:00:03]} 58. Kxe6 {[%clk 00:10:26]} {[%emt 00:00:07]} f4 {[%clk 00:42:53]}
{[%emt 00:00:03]} 59. Rf1 {[%clk 00:10:44]} {[%emt 00:00:11]} Kc5 {[%clk
00:43:02]} {[%emt 00:00:22]} 60. Rxf4 {[%clk 00:11:09]} {[%emt 00:00:05]}
1/2-1/2

[Event "SS Manhem Chess Week GM and IM tournaments 2018"]
[Site "Molnlycke kulturhus, Biblioteksgatan 2, Molnlycke, Sweden"]
[Date "2018.08.14"]
[Round "5.9"]
[White "Ernst, Thomas"]
[Black "Storme, Isak"]
[Result "0-1"]
[TimeControl "90 minutes for 40 moves + 30 minutes for the rest of the game + 30 seconds per move from move one."]
[WhiteTitle "GM"]
[BlackTitle "FM"]
[WhiteFideId "1700065"]
[BlackFideId "1728113"]
[WhiteElo "2346"]
[BlackElo "2279"]

1. e4 {[%clk 01:30:56]} {[%emt 00:00:03]} c5 {[%clk 01:30:52]} {[%emt
00:00:08]} 2. Nf3 {[%clk 01:31:15]} {[%emt 00:00:11]} e6 {[%clk 01:31:13]}
{[%emt 00:00:08]} 3. d4 {[%clk 01:31:29]} {[%emt 00:00:17]} cxd4 {[%clk
01:31:36]} {[%emt 00:00:07]} 4. Nxd4 {[%clk 01:31:54]} {[%emt 00:00:05]} Nc6
{[%clk 01:31:58]} {[%emt 00:00:08]} 5. Nb5 {[%clk 01:31:35]} {[%emt 00:00:50]}
d6 {[%clk 01:28:09]} {[%emt 00:04:19]} 6. c4 {[%clk 01:31:53]} {[%emt
00:00:12]} Nf6 {[%clk 01:28:18]} {[%emt 00:00:21]} 7. N1c3 {[%clk 01:32:09]}
{[%emt 00:00:13]} a6 {[%clk 01:28:17]} {[%emt 00:00:32]} 8. Na3 {[%clk
01:32:26]} {[%emt 00:00:13]} Be7 {[%clk 01:28:04]} {[%emt 00:00:43]} 9. Be2
{[%clk 01:32:36]} {[%emt 00:00:20]} O-O {[%clk 01:28:11]} {[%emt 00:00:23]} 10.
O-O {[%clk 01:32:40]} {[%emt 00:00:25]} b6 {[%clk 01:28:30]} {[%emt 00:00:12]}
11. Be3 {[%clk 01:32:19]} {[%emt 00:00:50]} Bb7 {[%clk 01:28:51]} {[%emt
00:00:09]} 12. Qe1 {[%clk 01:26:31]} {[%emt 00:06:17]} Ne5 {[%clk 01:13:16]}
{[%emt 00:16:07]} 13. f3 {[%clk 01:26:49]} {[%emt 00:00:12]} d5 {[%clk
01:08:23]} {[%emt 00:05:23]} 14. exd5 {[%clk 01:26:18]} {[%emt 00:01:01]} exd5
{[%clk 01:07:15]} {[%emt 00:01:39]} 15. Rd1 {[%clk 01:26:31]} {[%emt 00:00:17]}
Qc7 {[%clk 01:02:59]} {[%emt 00:04:45]} 16. cxd5 {[%clk 00:55:40]} {[%emt
00:31:21]} Bc5 {[%clk 00:45:34]} {[%emt 00:17:55]} 17. Qf2 {[%clk 00:54:46]}
{[%emt 00:01:24]} Bxa3 {[%clk 00:43:05]} {[%emt 00:02:59]} 18. Bxb6 {[%clk
00:54:44]} {[%emt 00:00:33]} Qc8 {[%clk 00:43:02]} {[%emt 00:00:32]} 19. Ne4
{[%clk 00:53:32]} {[%emt 00:01:42]} Nxe4 {[%clk 00:40:29]} {[%emt 00:03:04]} 20.
fxe4 {[%clk 00:53:47]} {[%emt 00:00:15]} Bd6 {[%clk 00:34:13]} {[%emt
00:06:45]} 21. Rc1 {[%clk 00:53:23]} {[%emt 00:00:55]} Qd7 {[%clk 00:34:31]}
{[%emt 00:00:11]} 22. Bc5 {[%clk 00:52:19]} {[%emt 00:01:33]} Bxc5 {[%clk
00:29:45]} {[%emt 00:05:18]} 23. Rxc5 {[%clk 00:52:42]} {[%emt 00:00:07]} Rac8
{[%clk 00:28:44]} {[%emt 00:01:30]} 24. Rfc1 {[%clk 00:52:42]} {[%emt
00:00:30]} Rxc5 {[%clk 00:27:39]} {[%emt 00:01:36]} 25. Rxc5 {[%clk 00:53:03]}
{[%emt 00:00:08]} Qa4 {[%clk 00:24:25]} {[%emt 00:03:43]} 26. Rc7 {[%clk
00:52:59]} {[%emt 00:00:31]} Ba8 {[%clk 00:23:18]} {[%emt 00:01:39]} 27. Qc5
{[%clk 00:46:46]} {[%emt 00:06:45]} Qxe4 {[%clk 00:21:44]} {[%emt 00:02:04]} 28.
Rc8 {[%clk 00:47:04]} {[%emt 00:00:12]} Nd7 {[%clk 00:22:01]} {[%emt 00:00:12]}
29. Rxf8+ {[%clk 00:47:26]} {[%emt 00:00:08]} Nxf8 {[%clk 00:22:21]} {[%emt
00:00:10]} 30. Bxa6 {[%clk 00:47:38]} {[%emt 00:00:19]} Bxd5 {[%clk 00:22:18]}
{[%emt 00:00:33]} 31. Bf1 {[%clk 00:48:00]} {[%emt 00:00:08]} Bxa2 {[%clk
00:22:23]} {[%emt 00:00:25]} 32. b4 {[%clk 00:48:20]} {[%emt 00:00:10]} Bd5
{[%clk 00:21:50]} {[%emt 00:01:03]} 33. b5 {[%clk 00:48:35]} {[%emt 00:00:16]}
g6 {[%clk 00:20:05]} {[%emt 00:02:14]} 34. b6 {[%clk 00:48:52]} {[%emt
00:00:14]} Ne6 {[%clk 00:19:46]} {[%emt 00:00:49]} 35. Qc8+ {[%clk 00:49:09]}
{[%emt 00:00:12]} Kg7 {[%clk 00:19:59]} {[%emt 00:00:17]} 36. Qc3+ {[%clk
00:49:31]} {[%emt 00:00:08]} Nd4 {[%clk 00:18:35]} {[%emt 00:01:53]} 0-1

[Event "SS Manhem Chess Week GM and IM tournaments 2018"]
[Site "Molnlycke kulturhus, Biblioteksgatan 2, Molnlycke, Sweden"]
[Date "2018.08.14"]
[Round "5.10"]
[White "Antonsen, Mikkel"]
[Black "Nedilko, Vasily"]
[Result "1/2-1/2"]
[TimeControl "90 minutes for 40 moves + 30 minutes for the rest of the game + 30 seconds per move from move one."]
[WhiteTitle "IM"]
[BlackTitle "IM"]
[WhiteFideId "1401378"]
[BlackFideId "14101459"]
[WhiteElo "2444"]
[BlackElo "2369"]

1. d4 {[%clk 01:30:57]} {[%emt 00:00:02]} Nf6 {[%clk 01:30:54]} {[%emt
00:00:07]} 2. c4 {[%clk 01:31:22]} {[%emt 00:00:05]} g6 {[%clk 01:31:19]}
{[%emt 00:00:05]} 3. Nc3 {[%clk 01:31:49]} {[%emt 00:00:03]} d5 {[%clk
01:31:43]} {[%emt 00:00:05]} 4. cxd5 {[%clk 01:31:59]} {[%emt 00:00:20]} Nxd5
{[%clk 01:32:06]} {[%emt 00:00:07]} 5. e4 {[%clk 01:32:26]} {[%emt 00:00:03]}
Nxc3 {[%clk 01:32:30]} {[%emt 00:00:06]} 6. bxc3 {[%clk 01:32:53]} {[%emt
00:00:03]} Bg7 {[%clk 01:32:56]} {[%emt 00:00:04]} 7. Be3 {[%clk 01:33:09]}
{[%emt 00:00:14]} c5 {[%clk 01:33:08]} {[%emt 00:00:17]} 8. Nf3 {[%clk
01:33:34]} {[%emt 00:00:05]} Qa5 {[%clk 01:30:33]} {[%emt 00:03:06]} 9. Nd2
{[%clk 01:33:44]} {[%emt 00:00:19]} Bd7 {[%clk 01:26:26]} {[%emt 00:04:37]} 10.
Nb3 {[%clk 01:27:41]} {[%emt 00:06:33]} Qxc3+ {[%clk 01:26:17]} {[%emt
00:00:38]} 11. Bd2 {[%clk 01:28:09]} {[%emt 00:00:03]} Qb2 {[%clk 01:26:31]}
{[%emt 00:00:16]} 12. Bc1 {[%clk 01:28:34]} {[%emt 00:00:05]} Qc3+ {[%clk
01:26:57]} {[%emt 00:00:04]} 13. Bd2 {[%clk 01:29:01]} {[%emt 00:00:03]} Qb2
{[%clk 01:27:24]} {[%emt 00:00:03]} 14. Bc1 {[%clk 01:29:27]} {[%emt 00:00:04]}
1/2-1/2

[Event "SS Manhem Chess Week GM and IM tournaments 2018"]
[Site "Molnlycke kulturhus, Biblioteksgatan 2, Molnlycke, Sweden"]
[Date "2018.08.15"]
[Round "6.1"]
[White "Johansson, Linus"]
[Black "Christiansen, Johan-Sebastian"]
[Result "1/2-1/2"]
[TimeControl "90 minutes for 40 moves + 30 minutes for the rest of the game + 30 seconds per move from move one."]
[WhiteTitle "IM"]
[BlackTitle "IM"]
[WhiteFideId "1711113"]
[BlackFideId "1512668"]
[WhiteElo "2457"]
[BlackElo "2515"]

1. Nf3 {[%clk 01:30:56]} {[%emt 00:00:03]} c5 {[%clk 01:30:38]} {[%emt
00:00:23]} 2. c4 {[%clk 01:31:20]} {[%emt 00:00:05]} Nc6 {[%clk 01:30:57]}
{[%emt 00:00:10]} 3. Nc3 {[%clk 01:31:47]} {[%emt 00:00:04]} g6 {[%clk
01:31:16]} {[%emt 00:00:11]} 4. e3 {[%clk 01:31:04]} {[%emt 00:01:13]} Nf6
{[%clk 01:31:42]} {[%emt 00:00:04]} 5. d4 {[%clk 01:31:30]} {[%emt 00:00:04]}
cxd4 {[%clk 01:32:08]} {[%emt 00:00:04]} 6. exd4 {[%clk 01:31:57]} {[%emt
00:00:02]} d5 {[%clk 01:32:32]} {[%emt 00:00:06]} 7. cxd5 {[%clk 01:32:23]}
{[%emt 00:00:05]} Nxd5 {[%clk 01:32:55]} {[%emt 00:00:06]} 8. Qb3 {[%clk
01:32:04]} {[%emt 00:00:49]} e6 {[%clk 01:33:22]} {[%emt 00:00:04]} 9. Bg5
{[%clk 01:31:53]} {[%emt 00:00:40]} Be7 {[%clk 01:33:33]} {[%emt 00:00:20]} 10.
Bh6 {[%clk 01:31:50]} {[%emt 00:00:32]} Bf8 {[%clk 01:34:00]} {[%emt 00:00:04]}
11. Bg5 {[%clk 01:32:04]} {[%emt 00:00:15]} Be7 {[%clk 01:34:25]} {[%emt
00:00:05]} 12. Bh6 {[%clk 01:30:56]} {[%emt 00:01:37]} Bf8 {[%clk 01:34:30]}
{[%emt 00:00:25]} 13. Bg5 {[%clk 01:16:43]} {[%emt 00:14:42]} 1/2-1/2

[Event "SS Manhem Chess Week GM and IM tournaments 2018"]
[Site "Molnlycke kulturhus, Biblioteksgatan 2, Molnlycke, Sweden"]
[Date "2018.08.15"]
[Round "6.3"]
[White "Rozentalis, Eduardas"]
[Black "Gritsak, Orest"]
[Result "1/2-1/2"]
[TimeControl "90 minutes for 40 moves + 30 minutes for the rest of the game + 30 seconds per move from move one."]
[WhiteTitle "GM"]
[BlackTitle "GM"]
[WhiteFideId "12800023"]
[BlackFideId "14102188"]
[WhiteElo "2503"]
[BlackElo "2464"]

1. e4 {[%clk 01:30:55]} {[%emt 00:00:03]} c6 {[%clk 01:30:08]} {[%emt
00:00:53]} 2. d4 {[%clk 01:30:11]} {[%emt 00:01:13]} d5 {[%clk 01:27:46]}
{[%emt 00:02:52]} 3. exd5 {[%clk 01:27:21]} {[%emt 00:03:20]} cxd5 {[%clk
01:27:48]} {[%emt 00:00:28]} 4. Bd3 {[%clk 01:26:25]} {[%emt 00:01:25]} g6
{[%clk 01:19:51]} {[%emt 00:08:29]} 5. c3 {[%clk 01:25:12]} {[%emt 00:01:43]}
Nc6 {[%clk 01:18:00]} {[%emt 00:02:21]} 6. Bf4 {[%clk 01:23:54]} {[%emt
00:01:48]} Bh6 {[%clk 01:15:43]} {[%emt 00:02:48]} 7. Bxh6 {[%clk 01:20:09]}
{[%emt 00:04:15]} Nxh6 {[%clk 01:13:46]} {[%emt 00:02:27]} 8. Nf3 {[%clk
01:20:12]} {[%emt 00:00:26]} Bf5 {[%clk 01:12:12]} {[%emt 00:02:05]} 9. O-O
{[%clk 01:16:27]} {[%emt 00:04:14]} Bxd3 {[%clk 01:10:10]} {[%emt 00:02:33]} 10.
Qxd3 {[%clk 01:16:43]} {[%emt 00:00:15]} Nf5 {[%clk 01:10:31]} {[%emt
00:00:08]} 11. Nbd2 {[%clk 01:16:42]} {[%emt 00:00:30]} O-O {[%clk 01:10:45]}
{[%emt 00:00:17]} 12. Rfe1 {[%clk 01:17:00]} {[%emt 00:00:12]} e6 {[%clk
01:11:07]} {[%emt 00:00:07]} 1/2-1/2

[Event "SS Manhem Chess Week GM and IM tournaments 2018"]
[Site "Molnlycke kulturhus, Biblioteksgatan 2, Molnlycke, Sweden"]
[Date "2018.08.15"]
[Round "6.4"]
[White "Brynell, Stellan"]
[Black "Lindberg, Bengt"]
[Result "1/2-1/2"]
[TimeControl "90 minutes for 40 moves + 30 minutes for the rest of the game + 30 seconds per move from move one."]
[WhiteTitle "GM"]
[BlackTitle "IM"]
[WhiteFideId "1700219"]
[BlackFideId "1700359"]
[WhiteElo "2391"]
[BlackElo "2416"]

1. d4 {[%clk 01:30:49]} {[%emt 00:00:09]} Nf6 {[%clk 01:30:51]} {[%emt
00:00:09]} 2. c4 {[%clk 01:30:51]} {[%emt 00:00:28]} e6 {[%clk 01:31:15]}
{[%emt 00:00:07]} 3. Nf3 {[%clk 01:29:45]} {[%emt 00:01:36]} b6 {[%clk
01:31:40]} {[%emt 00:00:05]} 4. g3 {[%clk 01:29:45]} {[%emt 00:00:29]} Ba6
{[%clk 01:32:05]} {[%emt 00:00:06]} 5. Qc2 {[%clk 01:29:41]} {[%emt 00:00:33]}
Bb4+ {[%clk 01:32:19]} {[%emt 00:00:15]} 6. Bd2 {[%clk 01:29:38]} {[%emt
00:00:34]} Be7 {[%clk 01:32:43]} {[%emt 00:00:06]} 7. e4 {[%clk 01:29:33]}
{[%emt 00:00:35]} d5 {[%clk 01:33:07]} {[%emt 00:00:06]} 8. cxd5 {[%clk
01:29:58]} {[%emt 00:00:05]} Bxf1 {[%clk 01:33:32]} {[%emt 00:00:05]} 9. Kxf1
{[%clk 01:30:23]} {[%emt 00:00:05]} exd5 {[%clk 01:33:57]} {[%emt 00:00:05]} 10.
e5 {[%clk 01:30:45]} {[%emt 00:00:08]} Ne4 {[%clk 01:34:23]} {[%emt 00:00:05]}
11. Nc3 {[%clk 01:30:56]} {[%emt 00:00:19]} Nxd2+ {[%clk 01:34:30]} {[%emt
00:00:23]} 12. Qxd2 {[%clk 01:30:57]} {[%emt 00:00:29]} Qd7 {[%clk 01:34:51]}
{[%emt 00:00:08]} 13. Kg2 {[%clk 01:31:18]} {[%emt 00:00:09]} Nc6 {[%clk
01:35:06]} {[%emt 00:00:16]} 14. Rac1 {[%clk 01:29:36]} {[%emt 00:02:12]} Nd8
{[%clk 01:29:46]} {[%emt 00:05:50]} 15. Ne1 {[%clk 01:27:43]} {[%emt 00:02:22]}
Ne6 {[%clk 01:28:19]} {[%emt 00:01:57]} 16. f4 {[%clk 01:25:34]} {[%emt
00:02:40]} g6 {[%clk 01:26:19]} {[%emt 00:02:30]} 17. Nc2 {[%clk 01:22:04]}
{[%emt 00:04:01]} c5 {[%clk 01:20:50]} {[%emt 00:05:59]} 18. Rhd1 {[%clk
00:48:38]} {[%emt 00:33:56]} Rd8 {[%clk 01:15:07]} {[%emt 00:06:12]} 19. Qd3
{[%clk 00:46:50]} {[%emt 00:02:19]} cxd4 {[%clk 00:47:05]} {[%emt 00:28:32]} 20.
Nxd4 {[%clk 00:46:17]} {[%emt 00:01:02]} O-O {[%clk 00:46:10]} {[%emt
00:01:26]} 21. Qb5 {[%clk 00:36:57]} {[%emt 00:09:50]} Bc5 {[%clk 00:34:28]}
{[%emt 00:12:12]} 22. Qxd7 {[%clk 00:26:59]} {[%emt 00:10:29]} Rxd7 {[%clk
00:34:56]} {[%emt 00:00:01]} 23. Nce2 {[%clk 00:26:55]} {[%emt 00:00:33]} Re8
{[%clk 00:34:47]} {[%emt 00:00:38]} 24. Kf3 {[%clk 00:21:43]} {[%emt 00:05:43]}
f6 {[%clk 00:22:12]} {[%emt 00:13:05]} 25. Nxe6 {[%clk 00:20:21]} {[%emt
00:01:52]} Rxe6 {[%clk 00:22:32]} {[%emt 00:00:10]} 26. b4 {[%clk 00:20:42]}
{[%emt 00:00:09]} Bf8 {[%clk 00:18:46]} {[%emt 00:04:16]} 27. Nd4 {[%clk
00:21:03]} {[%emt 00:00:10]} Re8 {[%clk 00:19:03]} {[%emt 00:00:13]} 28. e6
{[%clk 00:20:17]} {[%emt 00:01:15]} Rb7 {[%clk 00:16:10]} {[%emt 00:03:23]} 29.
a3 {[%clk 00:14:41]} {[%emt 00:06:07]} a5 {[%clk 00:13:17]} {[%emt 00:03:23]}
30. bxa5 {[%clk 00:12:22]} {[%emt 00:02:50]} bxa5 {[%clk 00:13:44]} {[%emt
00:00:02]} 31. Rd3 {[%clk 00:06:50]} {[%emt 00:06:01]} f5 {[%clk 00:11:28]}
{[%emt 00:02:46]} 32. g4 {[%clk 00:03:34]} {[%emt 00:03:47]} fxg4+ {[%clk
00:09:04]} {[%emt 00:02:54]} 33. Kxg4 {[%clk 00:04:03]} h5+ {[%clk 00:07:31]}
{[%emt 00:02:05]} 34. Kf3 {[%clk 00:03:18]} {[%emt 00:01:14]} Bg7 {[%clk
00:07:50]} {[%emt 00:00:11]} 35. Nc6 {[%clk 00:02:07]} {[%emt 00:01:42]} a4
{[%clk 00:07:41]} {[%emt 00:00:39]} 36. e7 {[%clk 00:01:25]} {[%emt 00:01:12]}
Rb3 {[%clk 00:07:19]} {[%emt 00:00:52]} 37. Ke2 {[%clk 00:00:48]} {[%emt
00:01:07]} Bf6 {[%clk 00:05:05]} {[%emt 00:02:43]} 38. Rxd5 {[%clk 00:00:43]}
{[%emt 00:00:36]} Bxe7 {[%clk 00:04:52]} {[%emt 00:00:43]} 39. Re5 {[%clk
00:01:04]} {[%emt 00:00:09]} Kf7 {[%clk 00:02:16]} {[%emt 00:03:05]} 40. Rc4
{[%clk 00:00:41]} {[%emt 00:00:54]} Bxa3 {[%clk 00:01:06]} {[%emt 00:01:40]} 41.
Rxe8 {[%clk 00:27:47]} {[%emt 00:03:23]} Kxe8 {[%clk 00:31:24]} {[%emt
00:00:12]} 42. Rxa4 {[%clk 00:28:00]} {[%emt 00:00:18]} Bd6 {[%clk 00:30:23]}
{[%emt 00:01:29]} 43. Kf2 {[%clk 00:26:13]} {[%emt 00:02:17]} Rb2+ {[%clk
00:29:37]} {[%emt 00:01:15]} 44. Kf3 {[%clk 00:19:27]} {[%emt 00:07:18]} Kd7
{[%clk 00:24:49]} {[%emt 00:05:18]} 45. Nd4 {[%clk 00:18:55]} {[%emt 00:01:02]}
Rxh2 {[%clk 00:22:34]} {[%emt 00:02:44]} 46. Ra7+ {[%clk 00:17:08]} {[%emt
00:02:19]} Bc7 {[%clk 00:13:21]} {[%emt 00:09:42]} 47. Nb5 {[%clk 00:10:59]}
{[%emt 00:06:38]} Rc2 {[%clk 00:13:40]} {[%emt 00:00:11]} 48. Ra6 {[%clk
00:10:21]} {[%emt 00:01:09]} Rc6 {[%clk 00:12:59]} {[%emt 00:01:10]} 49. Nxc7
{[%clk 00:09:31]} {[%emt 00:01:21]} Kxc7 {[%clk 00:13:24]} {[%emt 00:00:05]} 50.
Ra7+ {[%clk 00:09:56]} {[%emt 00:00:04]} Kd6 {[%clk 00:13:35]} {[%emt
00:00:17]} 51. Rg7 {[%clk 00:10:09]} {[%emt 00:00:19]} Kd5 {[%clk 00:13:48]}
{[%emt 00:00:17]} 52. f5 {[%clk 00:09:42]} {[%emt 00:00:58]} Rc3+ {[%clk
00:13:39]} {[%emt 00:00:38]} 53. Kf4 {[%clk 00:06:51]} {[%emt 00:03:21]} Rc4+
{[%clk 00:14:05]} {[%emt 00:00:05]} 54. Kf3 {[%clk 00:07:16]} {[%emt 00:00:04]}
gxf5 {[%clk 00:14:28]} {[%emt 00:00:06]} 55. Rg5 {[%clk 00:06:22]} {[%emt
00:01:25]} Ke5 {[%clk 00:14:53]} {[%emt 00:00:06]} 56. Rxh5 {[%clk 00:06:44]}
{[%emt 00:00:08]} Rc3+ {[%clk 00:15:19]} {[%emt 00:00:04]} 57. Kf2 {[%clk
00:07:05]} {[%emt 00:00:08]} Ke4 {[%clk 00:15:45]} {[%emt 00:00:04]} 58. Rh8
{[%clk 00:07:06]} {[%emt 00:00:29]} Rc2+ {[%clk 00:16:10]} {[%emt 00:00:05]} 59.
Kf1 {[%clk 00:07:25]} {[%emt 00:00:10]} Kf3 {[%clk 00:14:29]} {[%emt 00:02:10]}
60. Rh3+ {[%clk 00:07:45]} {[%emt 00:00:11]} Kg4 {[%clk 00:14:54]} {[%emt
00:00:05]} 61. Ra3 {[%clk 00:07:59]} {[%emt 00:00:17]} f4 {[%clk 00:15:19]}
{[%emt 00:00:05]} 62. Rb3 {[%clk 00:08:22]} {[%emt 00:00:07]} f3 {[%clk
00:15:28]} {[%emt 00:00:21]} 63. Rb8 {[%clk 00:08:48]} {[%emt 00:00:04]} Rc1+
{[%clk 00:15:52]} {[%emt 00:00:06]} 64. Kf2 {[%clk 00:09:14]} {[%emt 00:00:04]}
Rc2+ {[%clk 00:16:18]} {[%emt 00:00:04]} 65. Kf1 {[%clk 00:09:39]} {[%emt
00:00:04]} Rc1+ {[%emt 00:00:09]} 1/2-1/2